Cogmind - Beta 13 @@@ ROGUE MODE // 2024.07.06 @ 18:03:42 Player: Pilow64 Result: Destroyed by as-08135 with Assembled Rifle Performance ------------- Evolutions (0) 0 Regions Visited (4) 800 Robots Destroyed (26) 130 Value Destroyed (585) 585 Prototype IDs (23) 460 Alien Tech Used (0) 0 Bonus (312) 312 TOTAL SCORE: 2287 Bonus ------- High Alert Combat Kills 24 Aligned with FarCom 300 Friendly Fire -12 Cogmind --------- Core Integrity 0/250 Matter 253/300 Energy 125/125 System Corruption 0% Temperature Cool (0) Movement Core (1450) Ox28 Location -9/Mines Parts ------- > --- POWER (1) -------- Light Ion Engine > --- PROPULSION (2) --- (None) > --- UTILITY (2) ------ Huge Storage Unit Hacking Suite > --- WEAPON (2) ------- High-powered Shotgun > --- INVENTORY (25) --- Reinforced Deuterium Engine Reinforced Deuterium Engine Light Fission Core Wheel Humpback Terrain Scanner Modified TNC Target Analyzer Weapon Shielding Hardened Medium Armor Plating Hardlight Generator Trap Reconfigurator Shock Rifle Ion Cannon AWS/Autocannon Peak State ------------ > --- POWER ------------ Light Ion Engine > --- PROPULSION ------- Light Treads Light Treads > --- UTILITY ---------- Huge Storage Unit Hacking Suite > --- WEAPON ----------- Minigun Light Cannon > --- INVENTORY -------- Reinforced Deuterium Engine Reinforced Deuterium Engine Light Fission Core Wheel Humpback Terrain Scanner Modified TNC Target Analyzer Weapon Shielding Hardened Medium Armor Plating Hardlight Generator Trap Reconfigurator Shock Rifle Ion Cannon High-powered Shotgun AWS/Autocannon [Rating: 19] Favorites ----------- Power Light Ion Engine Engine Light Ion Engine Propulsion Light Treads Treads Light Treads Wheel Compact Wheel Utility Huge Storage Unit Device Terrain Scanner Storage Huge Storage Unit Hackware Hacking Suite Protection Weapon Shielding Weapon Light Cannon Energy Gun Medium Laser Ballistic Gun Minigun Ballistic Cannon Light Cannon Launcher Grenade Launcher Build | -11 -10 -10 -10 -9 ------- Run | Yrd Mat Min Exi Min Slots Evolved . | . . . . . Power . | . . . . . Propulsion . | . . . . . Utility . | . . . . . Weapon . | . . . . . Parts Attached 21 | 6 8 5 1 1 Power 4 | 1 2 1 . . Engine 4 | 1 2 1 . . Core . | . . . . . Reactor . | . . . . . Propulsion 5 | 2 1 2 . . Treads 2 | . 1 1 . . Leg . | . . . . . Wheel 3 | 2 . 1 . . Hover . | . . . . . Flight . | . . . . . Utility 5 | 1 3 . 1 . Device 1 | . 1 . . . Storage 2 | 1 1 . . . Processor . | . . . . . Hackware 1 | . . . 1 . Protection 1 | . 1 . . . Artifact . | . . . . . Weapon 7 | 2 2 2 . 1 Energy Gun 1 | 1 . . . . Energy Cannon . | . . . . . Ballistic Gun 4 | 1 1 1 . 1 Ballistic Cannon 1 | . . 1 . . Launcher 1 | . 1 . . . Special Weapon . | . . . . . Impact Weapon . | . . . . . Slashing Weapon . | . . . . . Piercing Weapon . | . . . . . Special Melee Weapon . | . . . . . Unidentified Prototypes . | . . . . . Parts Lost 7 | . 3 . . 4 Power . | . . . . . Propulsion 4 | . 2 . . 2 Utility . | . . . . . Weapon 3 | . 1 . . 2 Highest Loss Streak 4 | . 1 . . 4 To Critical Strikes . | . . . . . Average Slot Usage (%) 96 | . 85 94 100 98 Engine 14 | . 14 14 14 14 Treads 24 | . 10 21 28 26 Storage 14 | . 14 14 14 14 Hackware 1 | . . . 2 14 Protection 11 | . 10 14 11 . Energy Gun 1 | . 14 . . . Ballistic Gun 13 | . 11 14 14 14 Ballistic Cannon 12 | . . 14 14 14 Naked Turns . | . . . . . Heaviest Build 90 | 11 89 90 90 89 Greatest Support 40 | 26 26 40 40 40 Greatest Overweight (x) 28 | . 5 8 2 28 Average Overweight (x) 2 | . 2 3 2 2 Largest Inventory Capacity 25 | 8 25 25 25 25 Average Capacity 24 | 6 20 25 25 25 Most Carried 19 | 3 5 12 19 19 Average Carried 10 | . 2 7 12 18 Final Capacity 25 | 8 25 25 25 25 Final Carried 19 | 1 3 9 19 18 Class Distribution -------------------- 100% | Mutant Dominant Class ---------------- Mutant | -10/Materials Mutant | -10/Mines Mutant | -10/Exiles Mutant | -9/Mines Resources | -11 -10 -10 -10 -9 ----------- Run | Yrd Mat Min Exi Min Matter Collected 610 | 233 252 84 . 41 Remotely . | . . . . . Salvage Created 541 | . 430 56 . 55 Parts 56 | . 40 10 . 6 Haulers Intercepted . | . . . . . Recyclers Shooed . | . . . . . Parts Field Recycled . | . . . . . Retrieved Matter . | . . . . . Parts Self-Destructed . | . . . . . Prevented . | . . . . . Kills | -11 -10 -10 -10 -9 ------- Run | Yrd Mat Min Exi Min Combat Hostiles Destroyed 21 | . 13 3 . 5 Guns 9 | . 6 1 . 2 Cannons 5 | . . 2 . 3 AOE 7 | . 7 . . . Classes Destroyed 7 | . 5 1 . 1 Builder 2 | . 1 1 . . Tunneler 1 | . . 1 . . Operator 1 | . 1 . . . Watcher 3 | . 3 . . . Swarmer 7 | . 1 3 . 3 Grunt 12 | . 12 . . . Assembled 2 | . . . . 2 Best Kill Streak 6 | . 6 3 . 3 Combat Bots Only 5 | . 5 3 . 3 Max Kills in Single Turn 2 | . 2 2 . 2 Gunslinging . | . . . . . Exploded 2 | . 2 . . . Melee . | . . . . . Uniques/NPCs Destroyed . | . . . . . Combat | -11 -10 -10 -10 -9 -------- Run | Yrd Mat Min Exi Min Hostile Shots Fired 106 | . 59 5 . 42 Missed 34 | . 26 2 . 6 Damage Taken 1187 | . 438 24 . 725 Core 254 | . 99 18 . 137 Absorbed by Shields . | . . . . . Redirected to Shielding 3 | . 3 . . . Core Remaining (%) 100 | 100 . . . . Volleys Fired 53 | . 37 5 . 11 Largest 2 | . 2 2 . 2 Hottest 80 | . 80 60 . 60 Shots Fired 94 | . 62 10 . 22 Gun 63 | . 47 5 . 11 Cannon 16 | . . 5 . 11 Launcher 15 | . 15 . . . Special . | . . . . . Kinetic 42 | . 10 10 . 22 Thermal 37 | . 37 . . . Explosive 15 | . 15 . . . Electromagnetic . | . . . . . Robot Hit Streak 6 | . 6 3 . 6 Robot Miss Streak 4 | . 4 2 . 3 Penetration Max . | . . . . . Secondary Targets 1 | . 1 . . . Max Gunslinging Chain 1 | . 1 . . . Shots Hit Robots 42 | . 24 6 . 12 Core Hits 47 | . 35 5 . 7 Critical Kills . | . . . . . Critical Parts Destroyed . | . . . . . Critical Strikes 3 | . 3 . . . Burn 3 | . 3 . . . Melee Attacks . | . . . . . Impact . | . . . . . Slashing . | . . . . . Piercing . | . . . . . Sneak Attacks . | . . . . . Combat Hostiles . | . . . . . Follow-up Attacks . | . . . . . Damage Inflicted 1394 | . 1008 132 . 254 Guns 415 | . 223 44 . 148 Cannons 194 | . . 88 . 106 Explosions 785 | . 785 . . . Melee . | . . . . . Ramming . | . . . . . Kinetic 419 | . 33 132 . 254 Thermal 190 | . 190 . . . Explosive 785 | . 785 . . . Electromagnetic . | . . . . . Impact . | . . . . . Slashing . | . . . . . Piercing . | . . . . . Highest Corruption . | . . . . . Average Corruption . | . . . . . Corruption Purged . | . . . . . Corruption Blocked . | . . . . . Overload Shots . | . . . . . Overflow Damage 5 | . 5 . . . Projectiles . | . . . . . Explosions 5 | . 5 . . . Melee . | . . . . . Knockbacks 2 | . . 1 . 1 Impact . | . . . . . Kinetic 2 | . . 1 . 1 Secondary . | . . . . . Self-Inflicted Damage 54 | . 54 . . . Shots 4 | . 4 . . . Rammed . | . . . . . Targets Rammed . | . . . . . Kicked . | . . . . . Crushed . | . . . . . Highest Temperature 270 | . 270 20 . 40 Average Temperature 58 | . 70 13 . 17 Received Heat Transfer 213 | . 213 . . . Siege Activations . | . . . . . Robots Corrupted . | . . . . . Combat Hostiles . | . . . . . Parts Fried . | . . . . . Impact Corruptions . | . . . . . Robots Melted . | . . . . . Combat Hostiles . | . . . . . Parts Melted 1 | . 1 . . . Heat Transferred 777 | . 777 . . . Parts Sabotaged . | . . . . . Parts Stolen . | . . . . . Parts Stripped . | . . . . . Power Chain Reactions . | . . . . . Alert | -11 -10 -10 -10 -9 ------- Run | Yrd Mat Min Exi Min Peak Influence 473 | . 473 117 . 70 Initial 47 | . . 47 . . Average 100 | . 289 24 . 66 Maximum Alert Level 2 | . 2 . . . Low Security (%) 76 | 100 15 100 . 100 Level 1 16 | . 60 . . . Level 2 6 | . 23 . . . Level 3 . | . . . . . Level 4 . | . . . . . Level 5 . | . . . . . High Security . | . . . . . Max Security . | . . . . . Squads Dispatched 6 | . 5 1 . . Investigation 2 | . 1 1 . . Extermination . | . . . . . Reinforcement 4 | . 4 . . . Assault . | . . . . . Garrison . | . . . . . Intercept . | . . . . . Searches Triggered . | . . . . . Construction Impeded . | . . . . . Haulers Reinforced . | . . . . . Active Scanning Responses . | . . . . . Cargo Convoy Interrupts . | . . . . . Stealth | -11 -10 -10 -10 -9 --------- Run | Yrd Mat Min Exi Min Distress Signals 1 | . 1 . . . Communications Jammed . | . . . . . Distress Signals . | . . . . . Times Spotted 42 | . 20 3 . 19 Peak Tracking Total 16 | . 6 3 . 16 Tactical Retreats 2 | . 1 . . 1 Traps | -11 -10 -10 -10 -9 ------- Run | Yrd Mat Min Exi Min Traps Triggered 1 | . 1 . . . Indirectly . | . . . . . Trap Hack Attempts . | . . . . . Triggered . | . . . . . Disarmed . | . . . . . Reprogrammed . | . . . . . Reused . | . . . . . Traps Extracted . | . . . . . Installed . | . . . . . Triggered . | . . . . . Machines | -11 -10 -10 -10 -9 ---------- Run | Yrd Mat Min Exi Min Machines Disabled . | . . . . . Max in Single Turn . | . . . . . Machines Repaired . | . . . . . Machines Dismantled . | . . . . . Machines Sabotaged . | . . . . . Overloaded Fab Kills . | . . . . . Hacking | -11 -10 -10 -10 -9 --------- Run | Yrd Mat Min Exi Min Machines Accessed 8 | . 2 1 5 . Terminals 1 | . 1 . . . Fabricators . | . . . . . Repair Stations . | . . . . . Recycling Units 1 | . 1 . . . Scanalyzers . | . . . . . Garrison Access . | . . . . . Total Hacks 57 | . 6 1 50 . Successful 55 | . 4 1 50 . Failed 2 | . 2 . . . Catastrophic . | . . . . . Database Lockouts . | . . . . . Manual 1 | . . . 1 . Terminals 5 | . 5 . . . Fabricators . | . . . . . Repair Stations . | . . . . . Recycling Units 1 | . 1 . . . Scanalyzers . | . . . . . Garrison Access . | . . . . . Terminal Hacks 54 | . 3 1 50 . Record 49 | . . . 49 . Open Door 1 | . . 1 . . Dispatch Records 1 | . 1 . . . Maintenance Status 1 | . 1 . . . Hauler Manifests 1 | . 1 . . . Derelict Proto ID Bank 1 | . . . 1 . Fabricator Hacks . | . . . . . Repair Station Hacks . | . . . . . Recycling Unit Hacks 1 | . 1 . . . Report Inventory 1 | . 1 . . . Scanalyzer . | . . . . . Garrison Access Hacks . | . . . . . Unauthorized Hacks . | . . . . . Terminals . | . . . . . Fabricators . | . . . . . Repair Stations . | . . . . . Recycling Units . | . . . . . Scanalyzers . | . . . . . Garrison Access . | . . . . . Data Cores Recovered . | . . . . . Used . | . . . . . Hacking Detections 1 | . 1 . . . Full Trace Events . | . . . . . Feedback Events . | . . . . . Feedback Blocked . | . . . . . Robot Schematics Acquired . | . . . . . Robots Built . | . . . . . Authchips . | . . . . . Time . | . . . . . Total Robot Build Rating . | . . . . . Part Schematics Acquired . | . . . . . Parts Built . | . . . . . Authchips . | . . . . . Time . | . . . . . Total Part Build Rating . | . . . . . Parts Repaired . | . . . . . Time . | . . . . . Parts Recycled . | . . . . . Recycled Matter . | . . . . . Retrieved Matter . | . . . . . Retrieved Components . | . . . . . Parts Scanalyzed . | . . . . . Part Schematics Acquired . | . . . . . Parts Damaged . | . . . . . Bothacking | -11 -10 -10 -10 -9 ------------ Run | Yrd Mat Min Exi Min Used RIF Installer . | . . . . . Robots Hacked . | . . . . . Non-combat . | . . . . . Combat . | . . . . . Robot Hacks Applied . | . . . . . Relay Couplers Released . | . . . . . Fabnet Peak Effective % . | . . . . . Robots Rewired . | . . . . . Allies Hacked . | . . . . . Hacks Repelled . | . . . . . Allies | -11 -10 -10 -10 -9 -------- Run | Yrd Mat Min Exi Min Total Allies 2 | . . 2 . . Largest Group 2 | . . 2 2 . Highest-Rated Group 45 | . . 45 45 . Highest-Rated Ally 31 | . . 31 31 . Total Orders . | . . . . . Ally Attacks . | . . . . . Total Damage . | . . . . . Kills . | . . . . . Allies Corrupted . | . . . . . Allies Melted . | . . . . . Intel | -11 -10 -10 -10 -9 ------- Run | Yrd Mat Min Exi Min Robot Analysis Total . | . . . . . Derelict Logs Recovered 2 | . . 2 . . Drone Launches . | . . . . . Drone Recoveries . | . . . . . Exploration | -11 -10 -10 -10 -9 ------------- Run | Yrd Mat Min Exi Min Turns Passed 7202 | 44 839 1970 4175 174 Spaces Moved 2226 | 36 297 546 1302 45 Core 4 | 3 . . . 1 Treads 1953 | . 105 502 1302 44 Legs . | . . . . . Wheels 269 | 33 192 44 . . Hover . | . . . . . Flight . | . . . . . Fastest Speed 50 | 50 90 200 320 320 Average Speed 315 | 87 244 355 320 345 Slowest Speed 1450 | 100 480 480 320 1450 Overloaded Moves . | . . . . . Propulsion Burnouts . | . . . . . Robots Hopped . | . . . . . Cave-ins Triggered . | . . . . . Exploration Rate (%) 52 | 3 58 95 94 13 Regions Visited 4 Branch Regions 3 Pre-discovered Areas 2 | . . 1 1 . Known Exits Taken . | . . . . . Unknown Exits Taken 4 | 1 1 1 1 . Scrap Searched 1 | . . 1 . . Spaces Dug . | . . . . . Terrain Destroyed 72 | . 72 . . . Melee . | . . . . . Projectile . | . . . . . AOE 72 | . 72 . . . Terrain Rammed . | . . . . . Walls Destroyed . | . . . . . Machines Disabled . | . . . . . Actions | -11 -10 -10 -10 -9 --------- Run | Yrd Mat Min Exi Min Total 2337 | 48 350 570 1312 57 Wait . | . . . . . Move 2222 | 35 296 545 1301 45 Hop . | . . . . . Pick Up 32 | 7 7 11 7 . Fast Attach . | . . . . . Attach 11 | 6 3 1 . 1 Detach . | . . . . . Swap 10 | . 5 4 1 . Drop 6 | . 2 4 . . Fire 53 | . 37 5 . 11 Melee . | . . . . . Ram . | . . . . . Kick . | . . . . . Crush . | . . . . . Escape Stasis . | . . . . . Rewire 3 | . . . 3 . Trap . | . . . . . Miscellaneous . | . . . . . Route ------- -11/Scrapyard -10/Materials (discovered 3 exits: [*Mat x2] / *Min) -10/Mines (discovered 3 exits: [*Mat x2] / *Exi) -10/Exiles (discovered 2 exits: [*Min x2]) -9/Mines History --------- Turn | Location | Event 23 | -11/Scrapyard | Discovered new exit (range 16) 45 | -11/Scrapyard | Entered Materials 201 | -10/Materials | Discovered new exit (range 12) 226 | -10/Materials | Discovered new exit (range 12) 303 | -10/Materials | Build established: Mutant 341 | -10/Materials | Discovered new exit (range 11) 884 | -10/Materials | Entered Mines 1255 | -10/Mines | Met a Derelict shopkeep closing up shop 2054 | -10/Mines | Learned 2 Materials zone layouts 2074 | -10/Mines | Learned 4 Materials zone layouts 2608 | -10/Mines | Discovered new exit (range 5) 2630 | -10/Mines | Discovered new exit (range 8) 2779 | -10/Mines | Learned location of Storage (-9) 2838 | -10/Mines | Deemed a non-threat by the Exiles lab entrance 2838 | -10/Mines | Discovered new exit (range 5) 2854 | -10/Mines | Entered Exiles 2854 | -10/Exiles | Accompanied by 2 allies 2884 | -10/Exiles | Led the pair of lost Derelicts to a safe place 2937 | -10/Exiles | Met 8R-AWN 2989 | -10/Exiles | Met EX-HEX 3312 | -10/Exiles | Met EX-DEC 3450 | -10/Exiles | Visited The Gauntlet 4077 | -10/Exiles | Discovered new exit (range 12) 4323 | -10/Exiles | Met EX-BIN 4579 | -10/Exiles | Aligned with FarCom system 4582 | -10/Exiles | Given EX-Vault access code 4934 | -10/Exiles | Discovered new exit (range 14) 5365 | -10/Exiles | Learned location of Zion (-7) 6603 | -10/Exiles | Opened EX-Vault 6628 | -10/Exiles | Found Modified TNC 6636 | -10/Exiles | Found AWS/Autocannon 6646 | -10/Exiles | Found Trap Reconfigurator 6708 | -10/Exiles | Warned to stay clear of 0b10 Research branches 7029 | -10/Exiles | Stole three prototypes: Modified TNC, Trap Reconfigurator, AWS/Autocannon 7029 | -10/Exiles | Entered Mines 7166 | -9/Mines | Assembled infested the area 7171 | -9/Mines | Assisted by a Guerilla fighting off Assembled 7196 | -9/Mines | Core integrity fell below 50% 7203 | -9/Mines | Core integrity fell below 20% 7203 | -9/Mines | Destroyed by as-08135 with Assembled Rifle Last Messages --------------- 07187_ HV Slug penetrates as-83235. 07187_ as-83235 suffers critical hit (Destroy). 07187_ as-83235 destroyed. 07189_ HV Slug penetrates as-39706. 07189_ as-39706 suffers critical hit (Destroy). 07189_ as-39706 destroyed. 07189_ HV Slug penetrates T-07 Excavator. 07189_ T-07 Excavator destroyed. 07191_ HV Slug penetrates as-14077. 07191_ as-14077 knocked back. 07191_ HV Slug penetrates as-14077. 07192_ as-14077 destroyed. 07193_ C-30 ARC bursts open, deploying its payload. 07193_ D-53 Grenadier unfolds itself. 07193_ 8O-NSU(h) destroyed. 07195_ Minigun destroyed. 07195_ as-28735 destroyed. 07197_ Lgt. Treads destroyed. 07201_ Lgt. Cannon destroyed. 07203_ The unstable cave ceiling collapses. Map ----- +----------------------------------------------------+ | ?????????????????????????????????????????????????? | | ?????????????????????????????????????????????????? | | ?????????????????????????????????????????????????? | | ??????????????????????????????????##?????????????? | | ?????????????????????????????????# #????????????? | | ?????????????????????????????????# #???????????? | | ?????????????????????????????????# ???????????? | | ?????????????????????????????????# ???????????? | | ??????????????????????????????????# ##??????????? | | ??????????????????????????????????# ##?????????? | | ??????????????????????????????????# #?????????? | | ??????????????????????????????????# #?????????? | | ??????????????????????????????????# ####### #?? | | ??????????????????????????????????# #?? | | ??????????????????????????????????# ##########??? | | ??????????????????????????????????# ######??????? | | ??????????????????????????????????# #??????? | | ??????????????????????????????????# ### #??????? | | ??????????????????????????????????## #?# #??????? | | ???????????????????????????????????####?# #??????? | | ???????????? %???#???########???????????# #??????? | | ??????????? a% ##;### # ###?????????# ##?????? | | ???????????=%aa ;; ###??????## ##????? | | ???????????*%%a %! #?????## #????? | | ??????????????# a*% ## ######## ##????? | | ??????????????????# @ %d % ##????? | | ??????????????????## r d #????? | | ???????????????????### ######### #????? | | ?????????????????????## #???????## #????? | | ??????????????????????# ##????????# ###????? | | ??????????????????????## ###?????????# #??????? | | ???????????????????????### #???????????# #??????? | | ?????????????????????????# #??????????? ??????? | | ?????????????????????????# ??????????? ??????? | | ?????????????????????????####???????????"""??????? | | ????????????????????????????????????????"""??????? | | ????????????????????????????????????????""" ?????? | | ?????????????????????????????????????????????????? | | ?????????????????????????????????????????????????? | | ?????????????????????????????????????????????????? | | ?????????????????????????????????????????????????? | | ?????????????????????????????????????????????????? | | ?????????????????????????????????????????????????? | | ?????????????????????????????????????????????????? | | ?????????????????????????????????????????????????? | | ?????????????????????????????????????????????????? | | ?????????????????????????????????????????????????? | | ?????????????????????????????????????????????????? | | ?????????????????????????????????????????????????? | | ?????????????????????????????????????????????????? | +----------------------------------------------------+ Best States ------------- Heat Dissipation 25 Energy Generation 10 Energy Capacity 250 Matter Stores 300 Matter Capacity 300 Sight Range 16 Terrain Scan Range 14 Terrain Scan Density 10 Weapon Shielding 33 Evasion (%) 42 Recoil Reduction 2 Offensive Hacking 10 Item Schematics ----------------- None Robot Schematics ------------------ None Fabricated ------------ Nothing Alien Tech Used ----------------- None Achievements -------------- Librarian Challenges ------------ None Game ------ Seed TacticalColdBattery Manual? 0 Play Time 00:38:30 Cumulative 4.2 hours Start 2024.07.06 @ 14:11:08 End 2024.07.06 @ 18:03:42 Sessions 2 Manual Loads 0 Difficulty Rogue Special Mode None Game No. 7 Rogue 7 Adventurer 0 Explorer 0 Win Type - Total 0 Types 0/0/0/0/0/0/0/0/0 Lore% 13 Gallery% 9 Achievement% 10 Wizard Run 0 Options --------- Layout 0 ASCII 0 Keyboard 0 Movement Mouse Keybinds 0 Fullscreen 1 Font 18/SmallcapsGlow Map View 76x50 Zoom Use 1% Tactical HUD 1 Map Filters NONE Filters NONE Steam 1 RUN: 02497d85-ff88-4ec8-b169-e84f13c2f6f7